[Event "WYCC 2018 O18"]
[Site "Halkidiki"]
[Date "2018.10.28"]
[Round "9"]
[White "Tsomaia, Nikoloz"]
[Black "Stijve, Theo"]
[Result "1-0"]
[ECO "B30"]
[WhiteElo "2201"]
[BlackElo "2345"]
[Annotator "NA"]
[PlyCount "105"]
[EventDate "2018.10.20"]
[EventType "swiss"]
[EventCountry "GRE"]
[SourceTitle "playchess.com"]
[Source "ChessBase"]
[SourceQuality "1"]
[TimeControl "40/5400+30:1800+30"]

1. e4 {[%emt 0:00:00]} c5 {[%emt 0:00:15]} 2. Nf3 {[%emt 0:00:00]} Nc6 {[%emt 0:00:10]} 3. g3 {[%emt 0:01:06]} d5 {[%emt 0:04:46]} 4. exd5 {[%emt 0:02:43]} Qxd5 {[%emt 0:00:10]} 5. Nc3 {[%emt 0:03:25]} Qh5 {[%emt 0:07:17]} 6. Bg2 {[%emt 0:01:59]} Bh3 {[%emt 0:04:16]} 7. Bxh3 {[%emt 0:04:23]} Qxh3 {[%emt 0:00:23]} 8. d3 {[%emt 0:01:21]} Nf6 {[%emt 0:05:01]} 9. Be3 {[%emt 0:01:25]} e6 {[%emt 0:03:23]} 10. Qe2 {[%emt 0:09:30]} Be7 {[%emt 0:02:48]} 11. O-O-O {[%emt 0:03:10]} O-O {[%emt 0:03:59]} 12. Bg5 {[%emt 0:12:08]} Rad8 $11 {[%emt 0:15:27]} 13. Kb1 {[%emt 0:01:22]} Rfe8 {[%emt 0:10:07]} 14. Ne4 {[%emt 0:01:52]} Qf5 {[%emt 0:05:00]} 15. Bxf6 {[%emt 0:01:18]} Bxf6 {[%emt 0:01:33]} 16. g4 {[%emt 0:00:19]} Qf4 {[%emt 0:04:09]} 17. Qe3 {[%emt 0:05:57]} Qxe3 {[%emt 0:03:22]} 18. Nxf6+ {[%emt 0:00:11]} gxf6 {[%emt 0:00:10]} 19. fxe3 {[%emt 0:00:01]} Ne7 {[%emt 0:09:44]} 20. Nd2 {[%emt 0:02:26]} Nd5 {[%emt 0:07:25]} 21. Ne4 {[%emt 0:00:39]} Kg7 {[%emt 0:01:01]} 22. Rde1 {[%emt 0:00:08]} b6 {[%emt 0:01:47]} 23. Rhf1 {[%emt 0:00:07]} Rh8 {[%emt 0:02:55]} 24. Ng3 {[%emt 0:03:08]} e5 {[%emt 0:04:50]} 25. Nh5+ {[%emt 0:01:28]} Kg6 {[%emt 0:00:33]} 26. h4 {[%emt 0:10:49]} Rd6 {[%emt 0:00:32]} 27. Re2 {[%emt 0:00:50]} Rc8 {[%emt 0:01:02]} 28. e4 {[%emt 0:08:07]} Nf4 {[%emt 0:01:10]} 29. Nxf4+ {[%emt 0:00:09]} exf4 {[%emt 0:00:01]} 30. Ref2 {[%emt 0:01:54]} c4 {[%emt 0:00:56]} 31. Rxf4 {[%emt 0:00:05]} cxd3 {[%emt 0:00:45]} 32. cxd3 {[%emt 0:00:04]} Rc7 {[%emt 0:00:05]} 33. R1f3 {[%emt 0:00:45]} a5 {[%emt 0:00:50]} 34. Rf5 {[%emt 0:00:12]} Kg7 {[%emt 0:00:33]} 35. a4 {[%emt 0:01:29]} Kg6 {[%emt 0:00:29]} 36. Rb5 {[%emt 0:01:10]} Rcd7 {[%emt 0:00:31]} 37. Kc2 {[%emt 0:00:14]} Rc7+ {[%emt 0:00:05]} 38. Kd2 {[%emt 0:00:19]} Rc4 {[%emt 0:00:54]} 39. Rxb6 {[%emt 0:00:53]} Rxb6 {[%emt 0:00:13]} 40. dxc4 {[%emt 0:00:00]} Rxb2+ {[%emt 0:00:00]} 41. Kc3 {[%emt 0:01:36]} Rb4 {[%emt 0:04:45]} 42. Kd4 {[%emt 0:22:20]} Rxa4 {[%emt 0:02:52]} 43. Rc3 {[%emt 0:00:49]} Kg7 {[%emt 0:11:04]} 44. Kd5 {[%emt 0:01:41]} Ra1 {[%emt 0:00:24]} 45. c5 {[%emt 0:01:30]} a4 {[%emt 0:00:04]} 46. c6 {[%emt 0:00:35]} a3 {[%emt 0:02:55]} 47. Kc5 {[%emt 0:00:20]} a2 {[%emt 0:01:24]} 48. Rc2 {[%emt 0:00:06]} Re1 {[%emt 0:02:30]} 49. Rxa2 {[%emt 0:00:04]} Rxe4 {[%emt 0:00:05]} 50. c7 {[%emt 0:00:24]} Re1 {[%emt 0:01:27]} 51. Rc2 {[%emt 0:00:20]} Re8 {[%emt 0:00:06]} 52. Kd6 {[%emt 0:00:04]} Kg6 {[%emt 0:01:53]} 53. Rc5 {[%emt 0:00:34]} 1-0

[Event "WYCC 2018 O18"]
[Site "Halkidiki"]
[Date "2018.10.28"]
[Round "9"]
[White "Goncalves, Davi Sulzbacher"]
[Black "Muha, Miljenko"]
[Result "1-0"]
[ECO "D30"]
[WhiteElo "2177"]
[BlackElo "2365"]
[Annotator "NA"]
[PlyCount "115"]
[EventDate "2018.10.20"]
[EventType "swiss"]
[EventCountry "GRE"]
[SourceTitle "playchess.com"]
[Source "ChessBase"]
[SourceQuality "1"]
[TimeControl "40/5400+30:1800+30"]

1. d4 {[%emt 0:00:00]} d5 {[%emt 0:00:00]} 2. c4 {[%emt 0:00:00]} e6 {[%emt 0:00:00]} 3. Nf3 {[%emt 0:00:00]} a6 {[%emt 0:00:00]} 4. g3 {[%emt 0:12:39]} dxc4 {[%emt 0:00:00]} 5. Bg2 {[%emt 0:00:07]} b5 {[%emt 0:00:53]} 6. Ne5 {[%emt 0:08:11]} c6 {[%emt 0:00:11]} 7. Nxc6 {[%emt 0:03:10]} Qb6 {[%emt 0:00:10]} 8. Na5 {[%emt 0:00:40]} Ra7 {[%emt 0:01:26]} 9. Bd2 {[%emt 0:00:29]} c3 {[%emt 0:04:51]} 10. Bxc3 {[%emt 0:10:47]} b4 {[%emt 0:00:27]} 11. Nc4 {[%emt 0:01:18]} Qc7 {[%emt 0:04:53]} 12. Ne5 {[%emt 0:08:31]} bxc3 {[%emt 0:00:59]} 13. Nxc3 {[%emt 0:00:09]} Nf6 {[%emt 0:26:05]} 14. O-O {[%emt 0:04:30]} Bd6 {[%emt 0:03:48]} 15. Rc1 {[%emt 0:01:43]} O-O {[%emt 0:00:32]} 16. Nb5 {[%emt 0:15:26]} axb5 {[%emt 0:00:10]} 17. Rxc7 {[%emt 0:00:10]} Rxc7 {[%emt 0:00:45]} 18. Nd3 {[%emt 0:06:15]} Bb7 {[%emt 0:03:18]} 19. Bxb7 {[%emt 0:04:35]} Rxb7 {[%emt 0:00:06]} 20. e4 {[%emt 0:01:52]} Be7 {[%emt 0:06:41]} 21. d5 {[%emt 0:02:15]} exd5 {[%emt 0:01:04]} 22. e5 {[%emt 0:00:18]} Nfd7 {[%emt 0:02:58]} 23. Qf3 {[%emt 0:01:56]} Nb6 {[%emt 0:03:34]} 24. Rc1 {[%emt 0:00:29]} Re8 {[%emt 0:05:47]} 25. Nf4 {[%emt 0:04:44]} Bg5 {[%emt 0:03:30]} 26. Qg4 {[%emt 0:01:18]} Bxf4 {[%emt 0:02:12]} 27. gxf4 {[%emt 0:00:03]} N8d7 {[%emt 0:01:47]} 28. h4 {[%emt 0:01:51]} Nc8 {[%emt 0:04:42]} 29. h5 {[%emt 0:01:25]} Ne7 {[%emt 0:00:44]} 30. Qg2 {[%emt 0:02:33]} Nf8 {[%emt 0:00:50]} 31. h6 {[%emt 0:04:58]} g6 {[%emt 0:01:04]} 32. Rd1 {[%emt 0:02:09]} Ne6 {[%emt 0:00:45]} 33. Qg4 {[%emt 0:01:25]} Rd8 {[%emt 0:01:51]} 34. b3 {[%emt 0:00:15]} Nf5 {[%emt 0:01:27]} 35. Qf3 {[%emt 0:00:23]} Rbd7 {[%emt 0:01:58]} 36. Kh2 {[%emt 0:00:41]} d4 {[%emt 0:01:20]} 37. Qd3 {[%emt 0:00:39]} Nxf4 {[%emt 0:01:24]} 38. Qxb5 {[%emt 0:00:19]} d3 {[%emt 0:00:22]} 39. a4 {[%emt 0:00:31]} d2 {[%emt 0:01:44]} 40. a5 {[%emt 0:00:00]} Rd3 {[%emt 0:00:00]} 41. Qb6 {[%emt 0:03:55]} Nh4 {[%emt 0:12:43]} 42. Kg1 {[%emt 0:01:53]} Ne2+ {[%emt 0:14:34]} 43. Kf1 {[%emt 0:01:06]} Nc3 {[%emt 0:03:31]} 44. Qf6 {[%emt 0:00:56]} Nf5 {[%emt 0:00:44]} 45. e6 {[%emt 0:00:19]} Nxh6 {[%emt 0:02:17]} 46. e7 {[%emt 0:01:07]} Re8 {[%emt 0:02:41]} 47. Qc6 {[%emt 0:02:39]} Rxe7 {[%emt 0:08:21]} 48. Rxd2 {[%emt 0:00:17]} Red7 {[%emt 0:01:31]} 49. Qxd7 {[%emt 0:00:25]} Rxd7 {[%emt 0:00:02]} 50. Rxd7 {[%emt 0:00:10]} Nf5 {[%emt 0:00:32]} 51. a6 {[%emt 0:01:19]} Nb5 {[%emt 0:00:10]} 52. Rb7 {[%emt 0:00:22]} Nfd6 {[%emt 0:00:35]} 53. Rb6 {[%emt 0:00:16]} Kg7 {[%emt 0:01:02]} 54. Rxd6 {[%emt 0:00:11]} Nxd6 {[%emt 0:00:02]} 55. a7 {[%emt 0:00:10]} Ne4 {[%emt 0:00:01]} 56. a8=Q {[%emt 0:00:44]} Nd2+ {[%emt 0:00:04]} 57. Kg2 {[%emt 0:00:09]} Nxb3 {[%emt 0:00:02]} 58. Qa3 {[%emt 0:00:12]} 1-0

[Event "WYCC 2018 O18"]
[Site "Halkidiki"]
[Date "2018.10.28"]
[Round "9"]
[White "Pedoson, Georg Aleksander"]
[Black "Szustakowski, Antoni"]
[Result "0-1"]
[ECO "A06"]
[WhiteElo "2162"]
[BlackElo "2319"]
[Annotator "NA"]
[PlyCount "88"]
[EventDate "2018.10.20"]
[EventType "swiss"]
[EventCountry "GRE"]
[SourceTitle "playchess.com"]
[Source "ChessBase"]
[SourceQuality "1"]
[TimeControl "40/5400+30:1800+30"]

1. c4 {[%emt 0:00:00]} e6 {[%emt 0:00:00]} 2. Nf3 {[%emt 0:00:41]} Nf6 {[%emt 0:00:05]} 3. b3 {[%emt 0:00:31]} d5 {[%emt 0:01:15]} 4. Bb2 {[%emt 0:00:09]} c5 {[%emt 0:00:35]} 5. e3 {[%emt 0:00:12]} Nc6 {[%emt 0:01:27]} 6. cxd5 {[%emt 0:00:08]} exd5 {[%emt 0:00:36]} 7. Bb5 {[%emt 0:00:11]} Be7 {[%emt 0:05:35]} 8. O-O {[%emt 0:01:33]} Qb6 {[%emt 0:01:13]} 9. Be2 {[%emt 0:02:48]} Bg4 {[%emt 0:00:50]} 10. d3 {[%emt 0:03:05]} O-O {[%emt 0:04:57]} 11. Nbd2 {[%emt 0:01:47]} Rfe8 {[%emt 0:03:40]} 12. Rc1 {[%emt 0:02:42]} Rac8 {[%emt 0:01:44]} 13. a3 {[%emt 0:10:51]} Qd8 {[%emt 0:16:06]} 14. Ne5 {[%emt 0:04:32]} Bxe2 {[%emt 0:03:35]} 15. Qxe2 {[%emt 0:00:07]} Bd6 {[%emt 0:05:26]} 16. Nxc6 {[%emt 0:00:28]} Rxc6 {[%emt 0:00:07]} 17. Qd1 {[%emt 0:03:03]} Qe7 {[%emt 0:07:34]} 18. Nf3 {[%emt 0:01:04]} Rec8 {[%emt 0:09:23]} 19. Nh4 {[%emt 0:04:26]} Be5 {[%emt 0:09:50]} 20. Nf5 {[%emt 0:05:38]} Qe6 {[%emt 0:00:20]} 21. Bxe5 {[%emt 0:00:06]} Qxf5 {[%emt 0:00:54]} 22. Bg3 {[%emt 0:01:14]} Qd7 {[%emt 0:13:11]} 23. h3 {[%emt 0:05:37]} Ra6 {[%emt 0:00:55]} 24. b4 {[%emt 0:02:23]} Rxa3 {[%emt 0:03:33]} 25. bxc5 {[%emt 0:00:23]} d4 {[%emt 0:02:31]} 26. e4 {[%emt 0:01:17]} Rc3 {[%emt 0:03:26]} 27. Bd6 {[%emt 0:00:48]} Ne8 {[%emt 0:01:51]} 28. e5 {[%emt 0:01:33]} Nxd6 {[%emt 0:00:55]} 29. Rxc3 {[%emt 0:00:05]} dxc3 {[%emt 0:00:01]} 30. cxd6 {[%emt 0:00:32]} b5 {[%emt 0:00:43]} 31. Qb3 {[%emt 0:01:10]} a5 {[%emt 0:00:09]} 32. d4 {[%emt 0:00:37]} a4 {[%emt 0:01:28]} 33. Qb4 {[%emt 0:02:43]} Rc4 {[%emt 0:00:02]} 34. Qa5 {[%emt 0:00:05]} c2 {[%emt 0:00:39]} 35. Rc1 {[%emt 0:00:15]} b4 {[%emt 0:00:01]} 36. Qa6 {[%emt 0:00:45]} Rc8 {[%emt 0:00:18]} 37. d5 {[%emt 0:00:33]} b3 {[%emt 0:00:01]} 38. Qb6 {[%emt 0:00:12]} Qd8 {[%emt 0:00:29]} 39. Qb4 {[%emt 0:00:42]} Rb8 {[%emt 0:02:27]} 40. Qxa4 {[%emt 0:00:00]} b2 {[%emt 0:00:00]} 41. Qxc2 {[%emt 0:00:12]} bxc1=Q+ {[%emt 0:00:46]} 42. Qxc1 {[%emt 0:00:07]} f6 {[%emt 0:05:00]} 43. f4 {[%emt 0:02:38]} fxe5 {[%emt 0:01:55]} 44. fxe5 {[%emt 0:01:40]} Qb6+ {[%emt 0:01:15]} 0-1

[Event "WYCC 2018 O18"]
[Site "Halkidiki"]
[Date "2018.10.28"]
[Round "9"]
[White "Veleshnja, Zino"]
[Black "Manu David Suthandram R"]
[Result "1/2-1/2"]
[ECO "A45"]
[WhiteElo "2155"]
[BlackElo "1970"]
[Annotator "NA"]
[PlyCount "173"]
[EventDate "2018.10.20"]
[EventType "swiss"]
[EventCountry "GRE"]
[SourceTitle "playchess.com"]
[Source "ChessBase"]
[SourceQuality "1"]
[TimeControl "40/5400+30:1800+30"]

1. d4 {[%emt 0:00:00]} Nf6 {[%emt 0:00:00]} 2. Bf4 {[%emt 0:00:00]} e6 {[%emt 0:00:35]} 3. e3 {[%emt 0:00:00]} d5 {[%emt 0:00:18]} 4. c3 {[%emt 0:00:00]} Bd6 {[%emt 0:00:38]} 5. Bg3 {[%emt 0:00:00]} O-O {[%emt 0:00:17]} 6. Bd3 {[%emt 0:00:00]} c5 {[%emt 0:00:13]} 7. Nf3 {[%emt 0:00:00]} Nc6 {[%emt 0:00:06]} 8. Nbd2 {[%emt 0:00:01]} Re8 {[%emt 0:01:56]} 9. Ne5 {[%emt 0:00:40]} Bxe5 {[%emt 0:02:13]} 10. dxe5 {[%emt 0:00:11]} Nd7 {[%emt 0:00:04]} 11. f4 {[%emt 0:04:55]} c4 {[%emt 0:01:06]} 12. Bc2 {[%emt 0:32:58]} Qb6 {[%emt 0:01:00]} 13. O-O {[%emt 0:00:28]} Qxb2 {[%emt 0:10:33]} 14. Nf3 {[%emt 0:00:56]} Nf8 {[%emt 0:09:31]} 15. Qd2 {[%emt 0:01:03]} Qa3 {[%emt 0:00:20]} 16. Rab1 {[%emt 0:02:56]} a6 {[%emt 0:09:38]} 17. e4 {[%emt 0:08:21]} Ne7 {[%emt 0:13:34]} 18. Nd4 {[%emt 0:02:03]} dxe4 {[%emt 0:05:35]} 19. Bxe4 {[%emt 0:02:59]} Rb8 {[%emt 0:10:18]} 20. f5 {[%emt 0:08:46]} Nxf5 {[%emt 0:11:42]} 21. Bxf5 {[%emt 0:03:16]} exf5 {[%emt 0:00:11]} 22. e6 {[%emt 0:00:57]} Bxe6 {[%emt 0:00:45]} 23. Bxb8 {[%emt 0:00:10]} Rxb8 {[%emt 0:00:32]} 24. Nxf5 {[%emt 0:02:27]} Bxf5 {[%emt 0:01:05]} 25. Rxf5 {[%emt 0:00:10]} Ne6 {[%emt 0:01:23]} 26. Qd7 {[%emt 0:02:01]} Rf8 {[%emt 0:01:07]} 27. Rbf1 {[%emt 0:00:40]} Nd8 {[%emt 0:00:11]} 28. Qd2 {[%emt 0:02:34]} b5 {[%emt 0:04:13]} 29. h3 {[%emt 0:03:37]} Qe7 {[%emt 0:00:28]} 30. Kh1 {[%emt 0:01:16]} Ne6 {[%emt 0:00:36]} 31. Qf2 {[%emt 0:02:48]} h6 {[%emt 0:03:44]} 32. Qe2 {[%emt 0:00:57]} Qd6 {[%emt 0:00:59]} 33. a4 {[%emt 0:02:17]} Nc5 {[%emt 0:02:55]} 34. axb5 {[%emt 0:00:15]} axb5 {[%emt 0:00:04]} 35. Qe3 {[%emt 0:03:04]} Na4 {[%emt 0:02:34]} 36. Rxb5 {[%emt 0:02:14]} Qd3 {[%emt 0:00:05]} 37. Qxd3 {[%emt 0:05:22]} cxd3 {[%emt 0:00:05]} 38. Rd5 {[%emt 0:04:15]} Nxc3 {[%emt 0:00:06]} 39. Rxd3 {[%emt 0:00:04]} Ne4 {[%emt 0:00:05]} 40. Kg1 {[%emt 0:00:00]} Nc5 {[%emt 0:00:00]} 41. Rd5 {[%emt 0:01:17]} Ne4 {[%emt 0:04:03]} 42. Rd7 {[%emt 0:01:12]} Nf6 {[%emt 0:00:23]} 43. Rb7 {[%emt 0:00:33]} Kh7 {[%emt 0:00:28]} 44. Ra1 {[%emt 0:03:52]} g6 {[%emt 0:00:25]} 45. g4 {[%emt 0:01:12]} Kg7 {[%emt 0:02:15]} 46. Raa7 {[%emt 0:00:05]} h5 {[%emt 0:02:06]} 47. g5 {[%emt 0:00:28]} Ne4 {[%emt 0:00:09]} 48. h4 {[%emt 0:01:27]} Nd6 {[%emt 0:00:21]} 49. Rb4 {[%emt 0:02:57]} Nf5 {[%emt 0:00:56]} 50. Kh2 {[%emt 0:03:39]} Rd8 {[%emt 0:01:19]} 51. Rbb7 {[%emt 0:00:20]} Rf8 {[%emt 0:00:03]} 52. Kh3 {[%emt 0:00:07]} Kg8 {[%emt 0:00:18]} 53. Rc7 {[%emt 0:00:55]} Kg7 {[%emt 0:01:16]} 54. Rc6 {[%emt 0:00:18]} Nd4 {[%emt 0:04:36]} 55. Rf6 {[%emt 0:00:22]} Nf5 {[%emt 0:00:13]} 56. Ra4 {[%emt 0:01:59]} Re8 {[%emt 0:00:41]} 57. Kg2 {[%emt 0:02:42]} Re2+ {[%emt 0:01:21]} 58. Kf3 {[%emt 0:00:27]} Re3+ {[%emt 0:00:22]} 59. Kf4 {[%emt 0:00:33]} Re8 {[%emt 0:01:24]} 60. Kf3 {[%emt 0:02:14]} Re3+ {[%emt 0:00:08]} 61. Kf2 {[%emt 0:00:21]} Re8 {[%emt 0:00:07]} 62. Ra7 {[%emt 0:02:23]} Rf8 {[%emt 0:00:06]} 63. Ra4 {[%emt 0:00:55]} Re8 {[%emt 0:00:08]} 64. Rf4 {[%emt 0:02:00]} Re7 {[%emt 0:00:15]} 65. Kf3 {[%emt 0:00:13]} Re3+ {[%emt 0:00:12]} 66. Kf2 {[%emt 0:00:20]} Re7 {[%emt 0:00:07]} 67. Rb4 {[%emt 0:03:02]} Re8 {[%emt 0:00:19]} 68. Ra6 {[%emt 0:01:39]} Kg8 {[%emt 0:01:31]} 69. Ra3 {[%emt 0:00:26]} Kg7 {[%emt 0:00:32]} 70. Kf3 {[%emt 0:00:05]} Kg8 {[%emt 0:01:00]} 71. Ra7 {[%emt 0:00:27]} Re3+ {[%emt 0:00:58]} 72. Kf4 {[%emt 0:00:10]} Re8 {[%emt 0:00:08]} 73. Rbb7 {[%emt 0:01:30]} Rf8 {[%emt 0:00:05]} 74. Ke5 {[%emt 0:00:31]} Kg7 {[%emt 0:00:30]} 75. Ra4 {[%emt 0:00:48]} Rd8 {[%emt 0:00:49]} 76. Rab4 {[%emt 0:01:19]} Re8+ {[%emt 0:02:52]} 77. Kd5 {[%emt 0:00:23]} Rd8+ {[%emt 0:00:04]} 78. Kc6 {[%emt 0:01:37]} Rc8+ {[%emt 0:00:58]} 79. Kd7 {[%emt 0:00:53]} Rc3 {[%emt 0:03:39]} 80. Rc7 {[%emt 0:01:47]} Rd3+ {[%emt 0:03:44]} 81. Kc6 {[%emt 0:01:44]} Rc3+ {[%emt 0:00:39]} 82. Kb6 {[%emt 0:01:04]} Rh3 {[%emt 0:00:12]} 83. Rcc4 {[%emt 0:01:04]} Ne3 {[%emt 0:00:35]} 84. Rc5 {[%emt 0:00:08]} Nf5 {[%emt 0:00:12]} 85. Rcc4 {[%emt 0:01:04]} Ne3 {[%emt 0:00:09]} 86. Rc5 {[%emt 0:00:10]} Nf5 {[%emt 0:00:06]} 87. Rcc4 {[%emt 0:00:08]} 1/2-1/2

[Event "WYCC 2018 O18"]
[Site "Halkidiki"]
[Date "2018.10.28"]
[Round "9"]
[White "Giesinger, Elias"]
[Black "Kouskoutis, Georgios-Alexandros"]
[Result "1/2-1/2"]
[ECO "A61"]
[WhiteElo "2131"]
[BlackElo "2296"]
[Annotator "NA"]
[PlyCount "160"]
[EventDate "2018.10.20"]
[EventType "swiss"]
[EventCountry "GRE"]
[SourceTitle "playchess.com"]
[Source "ChessBase"]
[SourceQuality "1"]
[TimeControl "40/5400+30:1800+30"]

1. d4 {[%emt 0:00:00]} Nf6 {[%emt 0:00:21]} 2. Nf3 {[%emt 0:00:11]} e6 {[%emt 0:00:24]} 3. c4 {[%emt 0:00:05]} c5 {[%emt 0:00:07]} 4. d5 {[%emt 0:00:41]} d6 {[%emt 0:00:39]} 5. Nc3 {[%emt 0:00:19]} exd5 {[%emt 0:00:08]} 6. cxd5 {[%emt 0:00:09]} g6 {[%emt 0:00:07]} 7. Bf4 {[%emt 0:00:36]} a6 {[%emt 0:00:43]} 8. a4 {[%emt 0:00:05]} Bg7 {[%emt 0:00:23]} 9. h3 {[%emt 0:00:52]} O-O {[%emt 0:00:12]} 10. e3 {[%emt 0:00:04]} Re8 {[%emt 0:00:39]} 11. Nd2 {[%emt 0:01:39]} Nbd7 {[%emt 0:31:14]} 12. Be2 {[%emt 0:06:10]} Ne5 {[%emt 0:06:40]} 13. O-O {[%emt 0:00:44] LiveBook: 68 Games} Nfd7 {[%emt 0:01:16]} 14. Bh2 {[%emt 0:03:44]} f5 {[%emt 0:00:39]} 15. e4 {[%emt 0:09:43]} Nf6 $11 {[%emt 0:05:44]} 16. f4 {[%emt 0:06:57]} Nf7 {[%emt 0:01:35]} 17. Bd3 {[%emt 0:06:26]} Nxe4 {[%emt 0:04:06]} 18. Bxe4 {[%emt 0:05:36]} fxe4 {[%emt 0:04:34]} 19. Ndxe4 {[%emt 0:00:14]} Bf5 {[%emt 0:02:12]} 20. Ng3 {[%emt 0:01:29]} Nh6 {[%emt 0:01:40]} 21. Kh1 {[%emt 0:04:50]} Re3 {[%emt 0:07:03]} 22. Rf3 {[%emt 0:08:39]} Qe7 {[%emt 0:04:42]} 23. Bg1 {[%emt 0:01:02]} Rxf3 {[%emt 0:02:34]} 24. Qxf3 {[%emt 0:00:10]} Re8 {[%emt 0:02:17]} 25. Bf2 {[%emt 0:01:08]} Qd7 {[%emt 0:11:33]} 26. Kh2 {[%emt 0:07:05]} b5 {[%emt 0:02:34]} 27. axb5 {[%emt 0:00:25]} axb5 {[%emt 0:00:04]} 28. Ra6 {[%emt 0:03:13]} Nf7 {[%emt 0:03:04]} 29. b3 {[%emt 0:04:50]} Qb7 {[%emt 0:02:14]} 30. Ra5 {[%emt 0:01:27]} b4 {[%emt 0:02:12]} 31. Nce4 {[%emt 0:01:30]} Bxe4 {[%emt 0:00:21]} 32. Nxe4 {[%emt 0:00:17]} Ra8 {[%emt 0:01:38]} 33. Rxa8+ {[%emt 0:01:57]} Qxa8 {[%emt 0:00:05]} 34. Qd3 {[%emt 0:06:38]} Qd8 {[%emt 0:02:10]} 35. g4 {[%emt 0:02:19]} Qe7 {[%emt 0:00:20]} 36. Kg2 {[%emt 0:00:30]} h5 {[%emt 0:01:02]} 37. gxh5 {[%emt 0:04:27]} gxh5 {[%emt 0:00:06]} 38. Ng3 {[%emt 0:00:05]} Nh6 {[%emt 0:00:47]} 39. Nxh5 {[%emt 0:05:49]} Qf7 {[%emt 0:00:06]} 40. Nxg7 {[%emt 0:00:00]} Kxg7 {[%emt 0:00:00]} 41. Be3 {[%emt 0:17:05]} Nf5 {[%emt 0:02:43]} 42. Bc1 {[%emt 0:04:04]} Ne7 {[%emt 0:12:38]} 43. Bb2+ {[%emt 0:03:58]} Kf8 {[%emt 0:01:55]} 44. Qe4 {[%emt 0:01:37]} Nxd5 {[%emt 0:05:23]} 45. f5 {[%emt 0:00:10]} Nf6 {[%emt 0:02:27]} 46. Qa8+ {[%emt 0:02:44]} Ne8 {[%emt 0:00:07]} 47. Qf3 {[%emt 0:00:23]} Qg8+ {[%emt 0:01:14]} 48. Kf2 {[%emt 0:00:14]} Qg5 {[%emt 0:00:53]} 49. Qe3 {[%emt 0:05:34]} Qh4+ {[%emt 0:04:00]} 50. Ke2 {[%emt 0:00:26]} Qh5+ {[%emt 0:00:33]} 51. Qf3 {[%emt 0:01:08]} Qf7 {[%emt 0:00:48]} 52. Qe3 {[%emt 0:00:29]} Qxf5 {[%emt 0:02:57]} 53. Qf3 {[%emt 0:00:07]} Qxf3+ {[%emt 0:00:18]} 54. Kxf3 {[%emt 0:00:01]} Kf7 {[%emt 0:00:27]} 55. Ke4 {[%emt 0:01:00]} Ke6 {[%emt 0:00:12]} 56. Bc1 {[%emt 0:00:53]} d5+ {[%emt 0:00:49]} 57. Kd3 {[%emt 0:00:28]} Nd6 {[%emt 0:00:43]} 58. Be3 {[%emt 0:03:25]} Ne4 {[%emt 0:01:54]} 59. h4 {[%emt 0:01:12]} Kf5 {[%emt 0:00:32]} 60. h5 {[%emt 0:00:28]} Kf6 {[%emt 0:00:12]} 61. Bf4 {[%emt 0:01:31]} Nf2+ {[%emt 0:00:43]} 62. Ke3 {[%emt 0:00:45]} Ng4+ {[%emt 0:00:37]} 63. Kd3 {[%emt 0:00:32]} Nf2+ {[%emt 0:00:05]} 64. Ke3 {[%emt 0:00:05]} Ng4+ {[%emt 0:00:39]} 65. Kd3 {[%emt 0:00:04]} Ne5+ {[%emt 0:00:21]} 66. Kc2 {[%emt 0:00:20]} Kf5 {[%emt 0:00:33]} 67. Be3 {[%emt 0:00:31]} Nd7 {[%emt 0:00:52]} 68. h6 {[%emt 0:00:19]} Kg6 {[%emt 0:00:10]} 69. Kd3 {[%emt 0:00:39]} Ne5+ {[%emt 0:00:36]} 70. Kc2 {[%emt 0:00:22]} c4 {[%emt 0:00:47]} 71. bxc4 {[%emt 0:00:28]} dxc4 {[%emt 0:00:08]} 72. Bc5 {[%emt 0:01:08]} b3+ {[%emt 0:00:24]} 73. Kc3 {[%emt 0:00:27]} Kxh6 {[%emt 0:00:38]} 74. Bd4 {[%emt 0:00:45]} Nc6 {[%emt 0:00:39]} 75. Bh8 {[%emt 0:00:48]} Kh7 {[%emt 0:00:20]} 76. Bf6 {[%emt 0:00:13]} Kg6 {[%emt 0:00:05]} 77. Bh8 {[%emt 0:00:03]} Kh7 {[%emt 0:01:11]} 78. Bf6 {[%emt 0:00:05]} Kg6 {[%emt 0:00:03]} 79. Bh8 {[%emt 0:00:07]} Na5 {[%emt 0:01:00]} 80. Kb4 {[%emt 0:00:12]} Kf5 {[%emt 0:00:30]} 1/2-1/2

[Event "WYCC 2018 O18"]
[Site "Halkidiki"]
[Date "2018.10.28"]
[Round "9"]
[White "Rengifo Blancas, Renzo Jhonathan"]
[Black "Le, Minh Hoang"]
[Result "1-0"]
[ECO "B17"]
[WhiteElo "2123"]
[BlackElo "2271"]
[Annotator "NA"]
[PlyCount "75"]
[EventDate "2018.10.20"]
[EventType "swiss"]
[EventCountry "GRE"]
[SourceTitle "playchess.com"]
[Source "ChessBase"]
[SourceQuality "1"]
[TimeControl "40/5400+30:1800+30"]

1. e4 {[%emt 0:00:00]} c6 {[%emt 0:00:00]} 2. d4 {[%emt 0:00:00]} d5 {[%emt 0:00:00]} 3. Nc3 {[%emt 0:00:00]} dxe4 {[%emt 0:00:00]} 4. Nxe4 {[%emt 0:00:00]} Nd7 {[%emt 0:00:00]} 5. Ng5 {[%emt 0:00:01]} e6 {[%emt 0:00:29]} 6. Bd3 {[%emt 0:01:41]} Ngf6 {[%emt 0:00:24]} 7. N1f3 {[%emt 0:00:13]} Bd6 {[%emt 0:00:21]} 8. Qe2 {[%emt 0:00:22]} h6 {[%emt 0:00:20]} 9. Ne4 {[%emt 0:00:04]} Nxe4 {[%emt 0:00:06]} 10. Qxe4 {[%emt 0:00:04]} Nf6 {[%emt 0:00:07]} 11. Qe2 {[%emt 0:01:32]} b6 {[%emt 0:00:34]} 12. Bd2 {[%emt 0:00:23]} Bb7 {[%emt 0:00:33]} 13. Ne5 {[%emt 0:00:21]} Qc7 {[%emt 0:02:21]} 14. f4 {[%emt 0:00:08]} O-O-O {[%emt 0:00:46]} 15. O-O {[%emt 0:00:26]} c5 {[%emt 0:06:02]} 16. a4 {[%emt 0:01:03]} a5 {[%emt 0:15:41]} 17. c3 {[%emt 0:18:48]} Nd5 {[%emt 0:08:48]} 18. Rac1 {[%emt 0:05:41]} f6 {[%emt 0:10:56]} 19. Ng6 {[%emt 0:04:02]} Rhe8 {[%emt 0:00:08]} 20. b4 {[%emt 0:00:43]} e5 {[%emt 0:10:12]} 21. bxc5 {[%emt 0:04:31]} bxc5 {[%emt 0:02:34]} 22. fxe5 {[%emt 0:29:11]} fxe5 {[%emt 0:00:17]} 23. Bb5 {[%emt 0:00:55]} Bc6 {[%emt 0:01:30]} 24. Rb1 {[%emt 0:02:26]} Rd7 {[%emt 0:05:22]} 25. dxe5 {[%emt 0:05:00]} Bxe5 {[%emt 0:08:35]} 26. Nxe5 {[%emt 0:02:07]} Rxe5 {[%emt 0:00:04]} 27. Rf8+ {[%emt 0:03:49]} Rd8 {[%emt 0:00:06]} 28. Ba6+ {[%emt 0:09:06]} Kd7 {[%emt 0:00:14]} 29. Qg4+ {[%emt 0:01:25]} Kd6 {[%emt 0:00:08]} 30. Rxd8+ {[%emt 0:01:56]} Qxd8 {[%emt 0:00:04]} 31. c4 {[%emt 0:01:40]} Nf6 {[%emt 0:00:42]} 32. Qxg7 {[%emt 0:01:53]} Re2 {[%emt 0:00:12]} 33. Bxa5 {[%emt 0:04:33]} Qe7 {[%emt 0:07:48]} 34. Rd1+ {[%emt 0:00:16]} Ke6 {[%emt 0:00:05]} 35. Bc8+ {[%emt 0:00:09]} Nd7 {[%emt 0:00:41]} 36. Bxd7+ {[%emt 0:01:09]} Bxd7 {[%emt 0:00:04]} 37. Qg4+ {[%emt 0:00:22]} Kf6 {[%emt 0:00:24]} 38. Rf1+ {[%emt 0:00:06]} 1-0